[Event "Titled Tuesday Blitz January 10 Late 2023"]
[White "Yurovskykh, Oleksandr"]
[Black "Bjelobrk, Igor"]
[WhiteFideId "14134020"]
[BlackFideId "4300726"]
[WhiteElo "2328"]
[BlackElo "2403"]
[Result "1-0"]
[Round "11"]
[TimeControl "180+2"]
[Date "2023.01.10"]
[WhiteClock "0:00:12"]
[BlackClock "0:00:06"]

1. d4 {[%clk 0:00:00]}  d5 {[%clk 0:00:00]} 2. Bf4 {[%clk 0:03:00]}  Nf6 {[%clk 0:02:56]} 3. e3 {[%clk 0:03:00]}  e6 {[%clk 0:02:56]} 4. Nd2 {[%clk 0:03:01]}  Bd6 {[%clk 0:02:56]} 5. Bg3 {[%clk 0:03:01]}  O-O {[%clk 0:02:56]} 6. Bd3 {[%clk 0:03:01]}  c5 {[%clk 0:02:57]} 7. c3 {[%clk 0:03:01]}  Qc7 {[%clk 0:02:57]} 8. dxc5 {[%clk 0:03:01]}  Qxc5 {[%clk 0:02:57]} 9. Ngf3 {[%clk 0:02:57]}  Nbd7 {[%clk 0:02:56]} 10. Qe2 {[%clk 0:02:58]}  h6 {[%clk 0:02:55]} 11. e4 {[%clk 0:02:57]}  Bxg3 {[%clk 0:02:36]} 12. hxg3 {[%clk 0:02:56]}  dxe4 {[%clk 0:02:31]} 13. Bxe4 {[%clk 0:02:55]}  Rb8 {[%clk 0:02:31]} 14. O-O {[%clk 0:02:52]}  b5 {[%clk 0:02:27]} 15. a3 {[%clk 0:02:41]}  Qc7 {[%clk 0:02:16]} 16. Rfd1 {[%clk 0:02:40]}  Nxe4 {[%clk 0:02:14]} 17. Nxe4 {[%clk 0:02:26]}  Bb7 {[%clk 0:02:12]} 18. Nd6 {[%clk 0:02:27]}  Bxf3 {[%clk 0:02:06]} 19. gxf3 {[%clk 0:02:27]}  a6 {[%clk 0:01:50]} 20. Rd4 {[%clk 0:02:16]}  Nb6 {[%clk 0:01:46]} 21. Rad1 {[%clk 0:02:11]}  Nd5 {[%clk 0:01:42]} 22. Ne4 {[%clk 0:02:07]}  Rfd8 {[%clk 0:01:37]} 23. Kg2 {[%clk 0:02:04]}  Ne7 {[%clk 0:01:33]} 24. Qd3 {[%clk 0:01:57]}  Rxd4 {[%clk 0:01:25]} 25. Qxd4 {[%clk 0:01:51]}  Nd5 {[%clk 0:01:24]} 26. Qc5 {[%clk 0:01:52]}  Rc8 {[%clk 0:01:24]} 27. Qxc7 {[%clk 0:01:48]}  Rxc7 {[%clk 0:01:21]} 28. Rd4 {[%clk 0:01:41]}  Kf8 {[%clk 0:01:22]} 29. Kf1 {[%clk 0:01:41]}  Ke7 {[%clk 0:01:21]} 30. Ke2 {[%clk 0:01:28]}  f5 {[%clk 0:01:21]} 31. Nd2 {[%clk 0:01:28]}  Nb6 {[%clk 0:01:20]} 32. f4 {[%clk 0:01:27]}  Na4 {[%clk 0:01:15]} 33. Rb4 {[%clk 0:01:17]}  g5 {[%clk 0:01:13]} 34. fxg5 {[%clk 0:01:17]}  hxg5 {[%clk 0:01:02]} 35. c4 {[%clk 0:01:15]}  Rc5 {[%clk 0:01:03]} 36. cxb5 {[%clk 0:01:12]}  axb5 {[%clk 0:00:59]} 37. Kd3 {[%clk 0:01:12]}  Rd5+ {[%clk 0:01:00]} 38. Kc2 {[%clk 0:01:09]}  Kd6 {[%clk 0:00:58]} 39. Nf3 {[%clk 0:01:09]}  Rc5+ {[%clk 0:00:45]} 40. Kb1 {[%clk 0:01:07]}  Nb6 {[%clk 0:00:34]} 41. Nd4 {[%clk 0:01:02]}  Nc4 {[%clk 0:00:21]} 42. Nxb5+ {[%clk 0:01:01]}  Kc6 {[%clk 0:00:18]} 43. a4 {[%clk 0:00:49]}  Nd2+ {[%clk 0:00:18]} 44. Ka2 {[%clk 0:00:33]}  e5 {[%clk 0:00:15]} 45. Nc3 {[%clk 0:00:34]}  e4 {[%clk 0:00:15]} 46. Rd4 {[%clk 0:00:29]}  Nc4 {[%clk 0:00:13]} 47. Rd8 {[%clk 0:00:27]}  Kc7 {[%clk 0:00:13]} 48. Rg8 {[%clk 0:00:27]}  g4 {[%clk 0:00:12]} 49. Rf8 {[%clk 0:00:27]}  Kd7 {[%clk 0:00:12]} 50. Nb5 {[%clk 0:00:27]}  Ke7 {[%clk 0:00:10]} 51. Rh8 {[%clk 0:00:27]}  Ne5 {[%clk 0:00:10]} 52. Nd4 {[%clk 0:00:26]}  Nd3 {[%clk 0:00:10]} 53. Rh5 {[%clk 0:00:25]}  Kf6 {[%clk 0:00:09]} 54. Rh2 {[%clk 0:00:22]}  Rd5 {[%clk 0:00:09]} 55. Ne2 {[%clk 0:00:21]}  Ne5 {[%clk 0:00:08]} 56. Nf4 {[%clk 0:00:20]}  Rd2 {[%clk 0:00:08]} 57. Rh6+ {[%clk 0:00:21]}  Kg5 {[%clk 0:00:08]} 58. Rh5+ {[%clk 0:00:20]}  Kf6 {[%clk 0:00:09]} 59. Rh2 {[%clk 0:00:20]}  Nc4 {[%clk 0:00:09]} 60. Kb3 {[%clk 0:00:17]}  Ne5 {[%clk 0:00:10]} 61. a5 {[%clk 0:00:17]}  Nf3 {[%clk 0:00:10]} 62. Rh6+ {[%clk 0:00:17]}  Kg7 {[%clk 0:00:09]} 63. Rh5 {[%clk 0:00:16]}  Rxf2 {[%clk 0:00:09]} 64. a6 {[%clk 0:00:13]}  e3 {[%clk 0:00:08]} 65. a7 {[%clk 0:00:13]}  Nd4+ {[%clk 0:00:08]} 66. Kc4 {[%clk 0:00:13]}  e2 {[%clk 0:00:08]} 67. a8=Q {[%clk 0:00:12]}  e1=Q {[%clk 0:00:07]} 68. Qh8+ {[%clk 0:00:12]}  Kf7 {[%clk 0:00:06]} 69. Rh7# {[%clk 0:00:12]} 1-0


[Site "https://www.chess.com"]

[Event "Titled Tuesday Blitz January 10 Late 2023"]
[White "Aldokhin, Ivan"]
[Black "Tanenbaum, Zachary"]
[WhiteFideId "24115720"]
[BlackFideId "2060850"]
[WhiteElo "2413"]
[BlackElo "2261"]
[Result "0-1"]
[Round "11"]
[TimeControl "180+2"]
[Date "2023.01.10"]
[WhiteClock "0:00:01"]
[BlackClock "0:00:18"]

1. e4 {[%clk 0:00:00]}  e5 {[%clk 0:00:00]} 2. Nf3 {[%clk 0:03:00]}  Nc6 {[%clk 0:02:59]} 3. Bb5 {[%clk 0:03:01]}  a6 {[%clk 0:02:59]} 4. Ba4 {[%clk 0:03:02]}  d6 {[%clk 0:02:59]} 5. Bxc6+ {[%clk 0:03:02]}  bxc6 {[%clk 0:02:59]} 6. d4 {[%clk 0:03:01]}  exd4 {[%clk 0:03:00]} 7. Nxd4 {[%clk 0:03:02]}  c5 {[%clk 0:03:01]} 8. Nb3 {[%clk 0:03:03]}  Bb7 {[%clk 0:03:00]} 9. Nc3 {[%clk 0:03:00]}  Ne7 {[%clk 0:02:57]} 10. Bg5 {[%clk 0:03:00]}  Qd7 {[%clk 0:02:45]} 11. Qe2 {[%clk 0:02:58]}  h6 {[%clk 0:02:43]} 12. Be3 {[%clk 0:02:44]}  g6 {[%clk 0:02:38]} 13. O-O-O {[%clk 0:02:39]}  Qe6 {[%clk 0:02:31]} 14. Nd5 {[%clk 0:02:38]}  O-O-O {[%clk 0:02:24]} 15. Na5 {[%clk 0:02:18]}  Bg7 {[%clk 0:02:14]} 16. Nxb7 {[%clk 0:02:05]}  Kxb7 {[%clk 0:01:55]} 17. Rd3 {[%clk 0:02:00]}  c4 {[%clk 0:01:56]} 18. Ra3 {[%clk 0:01:50]}  Nxd5 {[%clk 0:01:22]} 19. Qxc4 {[%clk 0:01:45]}  Nb6 {[%clk 0:01:09]} 20. Qxa6+ {[%clk 0:01:41]}  Kc6 {[%clk 0:00:55]} 21. Bxb6 {[%clk 0:01:37]}  cxb6 {[%clk 0:00:54]} 22. Rb3 {[%clk 0:01:10]}  Rb8 {[%clk 0:00:48]} 23. Re1 {[%clk 0:01:10]}  Rhc8 {[%clk 0:00:39]} 24. Qb5+ {[%clk 0:00:53]}  Kc7 {[%clk 0:00:36]} 25. Ree3 {[%clk 0:00:45]}  Kd8 {[%clk 0:00:36]} 26. Rbd3 {[%clk 0:00:42]}  Qxa2 {[%clk 0:00:35]} 27. Rxd6+ {[%clk 0:00:40]}  Ke7 {[%clk 0:00:28]} 28. Rd7+ {[%clk 0:00:37]}  Kf8 {[%clk 0:00:28]} 29. e5 {[%clk 0:00:26]}  Qa1+ {[%clk 0:00:27]} 30. Kd2 {[%clk 0:00:27]}  Qa5+ {[%clk 0:00:22]} 31. Qxa5 {[%clk 0:00:27]}  bxa5 {[%clk 0:00:23]} 32. b3 {[%clk 0:00:21]}  Rd8 {[%clk 0:00:24]} 33. Rxd8+ {[%clk 0:00:21]}  Rxd8+ {[%clk 0:00:24]} 34. Kc3 {[%clk 0:00:20]}  Rd5 {[%clk 0:00:24]} 35. f4 {[%clk 0:00:21]}  f6 {[%clk 0:00:24]} 36. Kc4 {[%clk 0:00:21]}  Rd2 {[%clk 0:00:22]} 37. e6 {[%clk 0:00:21]}  Ke7 {[%clk 0:00:21]} 38. c3 {[%clk 0:00:07]}  Rxg2 {[%clk 0:00:20]} 39. Kb5 {[%clk 0:00:06]}  Rb2 {[%clk 0:00:19]} 40. Kxa5 {[%clk 0:00:02]}  Rxb3 {[%clk 0:00:18]} 41. h4 {[%clk 0:00:01]}  f5 {[%clk 0:00:18]} 42. Ka4 {[%clk 0:00:01]}  Rxc3 {[%clk 0:00:18]} 0-1


[Site "https://www.chess.com"]

[Event "Titled Tuesday Blitz January 10 Late 2023"]
[White "Suvorov, Alexander"]
[Black "Skvortsov, Andrei"]
[WhiteFideId "12977063"]
[BlackFideId "24108600"]
[WhiteElo "2338"]
[BlackElo "2313"]
[Result "1-0"]
[Round "11"]
[TimeControl "180+2"]
[Date "2023.01.10"]
[WhiteClock "0:01:10"]
[BlackClock "0:00:42"]

1. d4 {[%clk 0:00:00]}  Nf6 {[%clk 0:00:00]} 2. Nf3 {[%clk 0:03:00]}  g6 {[%clk 0:03:00]} 3. g3 {[%clk 0:03:00]}  c5 {[%clk 0:02:53]} 4. dxc5 {[%clk 0:02:57]}  Qa5+ {[%clk 0:02:51]} 5. Nc3 {[%clk 0:02:52]}  Qxc5 {[%clk 0:02:44]} 6. Bg2 {[%clk 0:02:47]}  Bg7 {[%clk 0:02:43]} 7. O-O {[%clk 0:02:47]}  O-O {[%clk 0:02:43]} 8. e4 {[%clk 0:02:47]}  d6 {[%clk 0:02:43]} 9. h3 {[%clk 0:02:47]}  Nc6 {[%clk 0:02:42]} 10. Be3 {[%clk 0:02:47]}  Qa5 {[%clk 0:02:41]} 11. Nd2 {[%clk 0:02:46]}  Qc7 {[%clk 0:02:41]} 12. Nb3 {[%clk 0:02:43]}  Nd7 {[%clk 0:02:26]} 13. Nd5 {[%clk 0:02:37]}  Qd8 {[%clk 0:02:22]} 14. c3 {[%clk 0:02:35]}  Nde5 {[%clk 0:02:21]} 15. Qe2 {[%clk 0:02:36]}  Na5 {[%clk 0:02:15]} 16. Nd2 {[%clk 0:02:35]}  e6 {[%clk 0:02:12]} 17. Nb4 {[%clk 0:02:28]}  f5 {[%clk 0:02:11]} 18. f4 {[%clk 0:02:24]}  Nec6 {[%clk 0:02:07]} 19. Nxc6 {[%clk 0:02:21]}  Nxc6 {[%clk 0:02:07]} 20. Rad1 {[%clk 0:02:15]}  a6 {[%clk 0:02:06]} 21. Nc4 {[%clk 0:02:16]}  d5 {[%clk 0:01:57]} 22. exd5 {[%clk 0:02:14]}  Ne7 {[%clk 0:01:51]} 23. dxe6 {[%clk 0:02:11]}  Qc7 {[%clk 0:01:42]} 24. Bb6 {[%clk 0:01:53]}  Qb8 {[%clk 0:01:38]} 25. Rd7 {[%clk 0:01:51]}  Bxd7 {[%clk 0:01:37]} 26. exd7 {[%clk 0:01:39]}  Bf6 {[%clk 0:01:35]} 27. Qe6+ {[%clk 0:01:40]}  Kg7 {[%clk 0:01:29]} 28. Nd6 {[%clk 0:01:37]}  Nc6 {[%clk 0:01:28]} 29. Re1 {[%clk 0:01:35]}  Nd8 {[%clk 0:01:22]} 30. Ne8+ {[%clk 0:01:28]}  Kh6 {[%clk 0:01:21]} 31. Qe3 {[%clk 0:01:27]}  Bh8 {[%clk 0:01:17]} 32. Bc7 {[%clk 0:01:15]}  Qa7 {[%clk 0:01:09]} 33. Qxa7 {[%clk 0:01:10]}  Rxa7 {[%clk 0:00:41]} 34. Bxd8 {[%clk 0:01:09]}  b5 {[%clk 0:00:41]} 35. Bg5+ {[%clk 0:01:10]}  Kh5 {[%clk 0:00:42]} 36. Bf3# {[%clk 0:01:10]} 1-0


[Site "https://www.chess.com"]

[Event "Titled Tuesday Blitz January 10 Late 2023"]
[White "Gasparyan, David"]
[Black "Tologon tegin, Semetei"]
[WhiteFideId "13311980"]
[BlackFideId "13800574"]
[WhiteElo "2142"]
[BlackElo "2372"]
[Result "1-0"]
[Round "11"]
[TimeControl "180+2"]
[Date "2023.01.10"]
[WhiteClock "0:01:46"]
[BlackClock "0:02:27"]

1. e4 {[%clk 0:00:00]}  c6 {[%clk 0:00:00]} 2. Nf3 {[%clk 0:03:00]}  d5 {[%clk 0:02:58]} 3. exd5 {[%clk 0:02:58]}  cxd5 {[%clk 0:02:58]} 4. b3 {[%clk 0:02:59]}  Nc6 {[%clk 0:02:57]} 5. Bb2 {[%clk 0:02:59]}  Bg4 {[%clk 0:02:55]} 6. Be2 {[%clk 0:02:58]}  e6 {[%clk 0:02:55]} 7. O-O {[%clk 0:02:57]}  Nf6 {[%clk 0:02:53]} 8. h3 {[%clk 0:02:56]}  Bh5 {[%clk 0:02:53]} 9. Ne5 {[%clk 0:02:47]}  Bxe2 {[%clk 0:02:53]} 10. Qxe2 {[%clk 0:02:43]}  Bd6 {[%clk 0:02:50]} 11. c4 {[%clk 0:02:42]}  Nxe5 {[%clk 0:02:50]} 12. Bxe5 {[%clk 0:02:17]}  O-O {[%clk 0:02:46]} 13. Bxd6 {[%clk 0:02:17]}  Qxd6 {[%clk 0:02:43]} 14. Nc3 {[%clk 0:02:15]}  dxc4 {[%clk 0:02:42]} 15. bxc4 {[%clk 0:02:14]}  Rfd8 {[%clk 0:02:37]} 16. Rfd1 {[%clk 0:02:15]}  Qd3 {[%clk 0:02:35]} 17. Rab1 {[%clk 0:02:14]}  b6 {[%clk 0:02:28]} 18. Rb3 {[%clk 0:02:04]}  Rac8 {[%clk 0:02:27]} 19. Qxd3 {[%clk 0:01:56]}  Rxd3 {[%clk 0:02:26]} 20. Nd5 {[%clk 0:01:50]}  Rd4 {[%clk 0:02:27]} 21. Ne7+ {[%clk 0:01:46]} 1-0


[Site "https://www.chess.com"]

[Event "Titled Tuesday Blitz January 10 Late 2023"]
[White "Bayo Milagro, Alvaro"]
[Black "Carbone, Diego"]
[WhiteFideId "22275240"]
[BlackFideId "3002179"]
[WhiteElo "2287"]
[BlackElo "2336"]
[Result "0-1"]
[Round "11"]
[TimeControl "180+2"]
[Date "2023.01.10"]
[WhiteClock "0:00:43"]
[BlackClock "0:00:05"]

1. e4 {[%clk 0:00:00]}  c5 {[%clk 0:00:00]} 2. Nf3 {[%clk 0:03:00]}  e6 {[%clk 0:02:59]} 3. d4 {[%clk 0:03:01]}  cxd4 {[%clk 0:02:59]} 4. Nxd4 {[%clk 0:03:00]}  Nc6 {[%clk 0:03:00]} 5. Nc3 {[%clk 0:03:00]}  Qc7 {[%clk 0:03:01]} 6. Be3 {[%clk 0:03:00]}  a6 {[%clk 0:03:01]} 7. Qf3 {[%clk 0:03:00]}  Nf6 {[%clk 0:03:01]} 8. O-O-O {[%clk 0:02:57]}  Ne5 {[%clk 0:03:00]} 9. Qg3 {[%clk 0:02:56]}  b5 {[%clk 0:02:44]} 10. f4 {[%clk 0:02:50]}  Neg4 {[%clk 0:02:44]} 11. e5 {[%clk 0:02:35]}  Nxe3 {[%clk 0:02:31]} 12. Qxe3 {[%clk 0:02:29]}  b4 {[%clk 0:02:27]} 13. exf6 {[%clk 0:02:30]}  bxc3 {[%clk 0:02:26]} 14. f5 {[%clk 0:02:28]}  cxb2+ {[%clk 0:02:24]} 15. Kb1 {[%clk 0:01:50]}  gxf6 {[%clk 0:02:13]} 16. fxe6 {[%clk 0:01:50]}  dxe6 {[%clk 0:02:02]} 17. Qf3 {[%clk 0:01:50]}  Rb8 {[%clk 0:01:55]} 18. Nc6 {[%clk 0:01:34]}  Bb7 {[%clk 0:00:44]} 19. Qxf6 {[%clk 0:01:02]}  Bxc6 {[%clk 0:00:39]} 20. Qxh8 {[%clk 0:01:02]}  Bd5 {[%clk 0:00:35]} 21. Rxd5 {[%clk 0:01:02]}  Qxc2+ {[%clk 0:00:31]} 22. Kxc2 {[%clk 0:00:52]}  b1=Q+ {[%clk 0:00:17]} 23. Kd2 {[%clk 0:00:53]}  Rb2+ {[%clk 0:00:17]} 24. Ke3 {[%clk 0:00:54]}  Qe1+ {[%clk 0:00:12]} 25. Kf4 {[%clk 0:00:52]}  Qf2+ {[%clk 0:00:09]} 26. Kg5 {[%clk 0:00:47]}  exd5 {[%clk 0:00:09]} 27. Qe5+ {[%clk 0:00:45]}  Be7+ {[%clk 0:00:07]} 28. Kh6 {[%clk 0:00:43]}  Qb6+ {[%clk 0:00:05]} 0-1


[Site "https://www.chess.com"]

[Event "Titled Tuesday Blitz January 10 Late 2023"]
[White "Ladan, Nicholas"]
[Black "Itkis, Boris"]
[WhiteFideId "30918855"]
[BlackFideId "1209167"]
[WhiteElo "2228"]
[BlackElo "2329"]
[Result "1-0"]
[Round "11"]
[TimeControl "180+2"]
[Date "2023.01.10"]
[WhiteClock "0:02:06"]
[BlackClock "0:00:56"]

1. b4 {[%clk 0:00:00]}  c6 {[%clk 0:00:00]} 2. Bb2 {[%clk 0:03:00]}  a5 {[%clk 0:02:47]} 3. a3 {[%clk 0:03:01]}  axb4 {[%clk 0:02:47]} 4. axb4 {[%clk 0:03:00]}  Rxa1 {[%clk 0:02:47]} 5. Bxa1 {[%clk 0:03:01]}  Qb6 {[%clk 0:02:47]} 6. Bc3 {[%clk 0:03:02]}  d5 {[%clk 0:02:48]} 7. e3 {[%clk 0:03:00]}  Nf6 {[%clk 0:02:38]} 8. d3 {[%clk 0:02:53]}  e6 {[%clk 0:02:18]} 9. Bxf6 {[%clk 0:02:51]}  gxf6 {[%clk 0:01:57]} 10. c3 {[%clk 0:02:50]}  e5 {[%clk 0:01:55]} 11. Nd2 {[%clk 0:02:51]}  Be6 {[%clk 0:01:45]} 12. Be2 {[%clk 0:02:47]}  Nd7 {[%clk 0:01:43]} 13. Ngf3 {[%clk 0:02:45]}  Bd6 {[%clk 0:01:42]} 14. O-O {[%clk 0:02:41]}  f5 {[%clk 0:01:41]} 15. Ng5 {[%clk 0:02:41]}  Ke7 {[%clk 0:01:40]} 16. Nxe6 {[%clk 0:02:40]}  fxe6 {[%clk 0:01:38]} 17. e4 {[%clk 0:02:40]}  Nf6 {[%clk 0:01:37]} 18. exf5 {[%clk 0:02:26]}  exf5 {[%clk 0:01:24]} 19. Bf3 {[%clk 0:02:16]}  e4 {[%clk 0:01:23]} 20. dxe4 {[%clk 0:02:15]}  fxe4 {[%clk 0:01:14]} 21. Re1 {[%clk 0:02:15]}  Kd8 {[%clk 0:01:13]} 22. Nxe4 {[%clk 0:02:15]}  Nxe4 {[%clk 0:01:10]} 23. Bxe4 {[%clk 0:02:11]}  Bxh2+ {[%clk 0:01:06]} 24. Kxh2 {[%clk 0:02:11]}  Qxf2 {[%clk 0:00:56]} 25. Bf3 {[%clk 0:02:06]} 1-0


[Site "https://www.chess.com"]

[Event "Titled Tuesday Blitz January 10 Late 2023"]
[White "Fernandez Garcia, Gumersindo"]
[Black "Skurikhin, Dmitrij"]
[WhiteFideId "24516740"]
[BlackFideId "4161297"]
[WhiteElo "2160"]
[BlackElo "2297"]
[Result "1-0"]
[Round "11"]
[TimeControl "180+2"]
[Date "2023.01.10"]
[WhiteClock "0:01:13"]
[BlackClock "0:01:38"]

1. e4 {[%clk 0:00:00]}  e6 {[%clk 0:00:00]} 2. d4 {[%clk 0:03:00]}  d5 {[%clk 0:02:59]} 3. Bd3 {[%clk 0:03:00]}  c5 {[%clk 0:02:58]} 4. exd5 {[%clk 0:03:01]}  exd5 {[%clk 0:02:58]} 5. Nf3 {[%clk 0:02:59]}  Nc6 {[%clk 0:02:57]} 6. dxc5 {[%clk 0:02:59]}  Bxc5 {[%clk 0:02:49]} 7. O-O {[%clk 0:02:59]}  Nge7 {[%clk 0:02:48]} 8. Nc3 {[%clk 0:03:00]}  Bg4 {[%clk 0:02:48]} 9. h3 {[%clk 0:02:57]}  Bh5 {[%clk 0:02:47]} 10. Bg5 {[%clk 0:02:56]}  f6 {[%clk 0:02:47]} 11. Bf4 {[%clk 0:02:49]}  Qd7 {[%clk 0:02:46]} 12. Re1 {[%clk 0:02:47]}  O-O-O {[%clk 0:02:45]} 13. Be2 {[%clk 0:02:39]}  g5 {[%clk 0:02:43]} 14. Bg3 {[%clk 0:02:32]}  Bg6 {[%clk 0:02:34]} 15. Nb5 {[%clk 0:02:30]}  Nf5 {[%clk 0:02:33]} 16. Bh2 {[%clk 0:02:15]}  d4 {[%clk 0:02:30]} 17. Bd3 {[%clk 0:02:14]}  Rhe8 {[%clk 0:02:28]} 18. Qd2 {[%clk 0:02:07]}  Bb4 {[%clk 0:02:22]} 19. Qxb4 {[%clk 0:02:00]}  a6 {[%clk 0:02:18]} 20. Qa5 {[%clk 0:01:51]}  Qf7 {[%clk 0:02:08]} 21. Na7+ {[%clk 0:01:24]}  Nxa7 {[%clk 0:01:43]} 22. Bxf5+ {[%clk 0:01:13]}  Bxf5 {[%clk 0:01:41]} 23. Qxf5+ {[%clk 0:01:14]}  Qd7 {[%clk 0:01:39]} 24. Qxd7+ {[%clk 0:01:15]}  Rxd7 {[%clk 0:01:38]} 25. Rxe8+ {[%clk 0:01:13]} 1-0


[Site "https://www.chess.com"]

[Event "Titled Tuesday Blitz January 10 Late 2023"]
[White "Tokhirjonova, Gulrukhbegim"]
[Black "Liu, Kelsey"]
[WhiteFideId "14203626"]
[BlackFideId "30944481"]
[WhiteElo "2340"]
[BlackElo "2065"]
[Result "1/2-1/2"]
[Round "11"]
[TimeControl "180+2"]
[Date "2023.01.10"]
[WhiteClock "0:00:10"]
[BlackClock "0:00:08"]

1. e4 {[%clk 0:00:00]}  c5 {[%clk 0:00:00]} 2. Nf3 {[%clk 0:02:57]}  e6 {[%clk 0:02:59]} 3. d4 {[%clk 0:02:56]}  cxd4 {[%clk 0:02:59]} 4. Nxd4 {[%clk 0:02:56]}  Nc6 {[%clk 0:02:59]} 5. c4 {[%clk 0:02:56]}  Nf6 {[%clk 0:02:59]} 6. Nc3 {[%clk 0:02:53]}  Bb4 {[%clk 0:02:56]} 7. Qd3 {[%clk 0:02:46]}  O-O {[%clk 0:02:44]} 8. Be2 {[%clk 0:02:42]}  d5 {[%clk 0:02:34]} 9. exd5 {[%clk 0:02:38]}  exd5 {[%clk 0:02:34]} 10. cxd5 {[%clk 0:02:32]}  Nxd5 {[%clk 0:02:27]} 11. O-O {[%clk 0:02:32]}  Nxc3 {[%clk 0:02:24]} 12. bxc3 {[%clk 0:02:29]}  Bxc3 {[%clk 0:02:20]} 13. Qxc3 {[%clk 0:02:27]}  Qxd4 {[%clk 0:02:19]} 14. Bb2 {[%clk 0:02:28]}  Qxc3 {[%clk 0:02:19]} 15. Bxc3 {[%clk 0:01:53]}  Bf5 {[%clk 0:02:12]} 16. Bf3 {[%clk 0:01:54]}  Rad8 {[%clk 0:02:11]} 17. Rad1 {[%clk 0:01:52]}  Rxd1 {[%clk 0:02:07]} 18. Rxd1 {[%clk 0:01:50]}  Rd8 {[%clk 0:02:01]} 19. Re1 {[%clk 0:01:50]}  Kf8 {[%clk 0:02:01]} 20. h3 {[%clk 0:01:45]}  f6 {[%clk 0:01:58]} 21. g4 {[%clk 0:01:41]}  Bg6 {[%clk 0:01:54]} 22. Kg2 {[%clk 0:01:36]}  Re8 {[%clk 0:01:52]} 23. Rd1 {[%clk 0:01:37]}  Ne5 {[%clk 0:01:40]} 24. Bxb7 {[%clk 0:01:34]}  Rb8 {[%clk 0:01:22]} 25. Bd5 {[%clk 0:01:31]}  Rd8 {[%clk 0:01:18]} 26. Kg3 {[%clk 0:01:20]}  Be4 {[%clk 0:01:18]} 27. Bb4+ {[%clk 0:00:53]}  Ke8 {[%clk 0:00:50]} 28. Bb3 {[%clk 0:00:52]}  Rxd1 {[%clk 0:00:50]} 29. Bxd1 {[%clk 0:00:53]}  Kd7 {[%clk 0:00:45]} 30. Ba4+ {[%clk 0:00:53]}  Kc7 {[%clk 0:00:45]} 31. f4 {[%clk 0:00:52]}  Nd3 {[%clk 0:00:45]} 32. Bf8 {[%clk 0:00:50]}  g6 {[%clk 0:00:44]} 33. Bb3 {[%clk 0:00:49]}  Nc1 {[%clk 0:00:44]} 34. Bg8 {[%clk 0:00:45]}  h5 {[%clk 0:00:43]} 35. gxh5 {[%clk 0:00:44]}  gxh5 {[%clk 0:00:42]} 36. Bf7 {[%clk 0:00:40]}  Ne2+ {[%clk 0:00:43]} 37. Kf2 {[%clk 0:00:40]}  Nxf4 {[%clk 0:00:36]} 38. Ke3 {[%clk 0:00:40]}  Ng6 {[%clk 0:00:33]} 39. Bc5 {[%clk 0:00:41]}  Bf5 {[%clk 0:00:33]} 40. Bxa7 {[%clk 0:00:31]}  Ne5 {[%clk 0:00:26]} 41. Bxh5 {[%clk 0:00:30]}  Bxh3 {[%clk 0:00:26]} 42. Bd4 {[%clk 0:00:25]}  Be6 {[%clk 0:00:26]} 43. a4 {[%clk 0:00:23]}  Kb7 {[%clk 0:00:26]} 44. Be2 {[%clk 0:00:20]}  Nc4+ {[%clk 0:00:17]} 45. Kf4 {[%clk 0:00:20]}  Ne5 {[%clk 0:00:15]} 46. a5 {[%clk 0:00:19]}  Nc4 {[%clk 0:00:12]} 47. Bxf6 {[%clk 0:00:17]}  Nxa5 {[%clk 0:00:09]} 48. Bf3+ {[%clk 0:00:15]}  Kc7 {[%clk 0:00:09]} 49. Be5+ {[%clk 0:00:14]}  Kd7 {[%clk 0:00:09]} 50. Kg5 {[%clk 0:00:14]}  Nc6 {[%clk 0:00:08]} 51. Bc3 {[%clk 0:00:12]}  Ne7 {[%clk 0:00:08]} 52. Kf6 {[%clk 0:00:12]}  Nd5+ {[%clk 0:00:08]} 53. Bxd5 {[%clk 0:00:10]}  Bxd5 {[%clk 0:00:08]} 1/2-1/2


[Site "https://www.chess.com"]

[Event "Titled Tuesday Blitz January 10 Late 2023"]
[White "Corredor Castellanos, Camilo"]
[Black "reevecanada"]
[WhiteFideId "4425871"]
[WhiteElo "1957"]
[BlackElo "2497"]
[Result "1-0"]
[Round "11"]
[TimeControl "180+2"]
[Date "2023.01.10"]
[WhiteClock "0:01:14"]
[BlackClock "0:00:09"]

1. d4 {[%clk 0:00:00]}  d5 {[%clk 0:00:00]} 2. c4 {[%clk 0:02:57]}  c6 {[%clk 0:02:57]} 3. Nf3 {[%clk 0:02:57]}  dxc4 {[%clk 0:02:57]} 4. e3 {[%clk 0:02:57]}  b5 {[%clk 0:02:56]} 5. a4 {[%clk 0:02:56]}  a6 {[%clk 0:02:55]} 6. Ne5 {[%clk 0:02:54]}  Nf6 {[%clk 0:02:55]} 7. g4 {[%clk 0:02:52]}  Qb6 {[%clk 0:02:53]} 8. g5 {[%clk 0:02:48]}  Nfd7 {[%clk 0:02:52]} 9. Bg2 {[%clk 0:02:47]}  Nxe5 {[%clk 0:02:52]} 10. dxe5 {[%clk 0:02:43]}  e6 {[%clk 0:02:49]} 11. Nc3 {[%clk 0:02:42]}  Bb7 {[%clk 0:02:49]} 12. b3 {[%clk 0:02:39]}  cxb3 {[%clk 0:02:49]} 13. O-O {[%clk 0:02:32]}  Nd7 {[%clk 0:02:41]} 14. Qxb3 {[%clk 0:01:49]}  Nc5 {[%clk 0:02:38]} 15. Qb1 {[%clk 0:01:47]}  Be7 {[%clk 0:02:25]} 16. axb5 {[%clk 0:01:43]}  cxb5 {[%clk 0:02:17]} 17. Nxb5 {[%clk 0:01:41]}  O-O {[%clk 0:02:16]} 18. Nd6 {[%clk 0:01:40]}  Qxb1 {[%clk 0:02:08]} 19. Rxb1 {[%clk 0:01:38]}  Bxg2 {[%clk 0:02:07]} 20. Kxg2 {[%clk 0:01:39]}  Nd3 {[%clk 0:02:05]} 21. f4 {[%clk 0:01:39]}  f6 {[%clk 0:02:01]} 22. gxf6 {[%clk 0:01:37]}  gxf6 {[%clk 0:01:58]} 23. Ba3 {[%clk 0:01:35]}  fxe5 {[%clk 0:01:58]} 24. Rb3 {[%clk 0:01:35]}  e4 {[%clk 0:01:55]} 25. Nxe4 {[%clk 0:01:35]}  Bxa3 {[%clk 0:01:33]} 26. Rxa3 {[%clk 0:01:35]}  Nb4 {[%clk 0:01:32]} 27. Nc5 {[%clk 0:01:36]}  Rac8 {[%clk 0:01:33]} 28. Nxe6 {[%clk 0:01:33]}  Rfe8 {[%clk 0:01:21]} 29. f5 {[%clk 0:01:31]}  Kf7 {[%clk 0:01:19]} 30. Kf3 {[%clk 0:01:31]}  Kf6 {[%clk 0:00:59]} 31. e4 {[%clk 0:01:29]}  Rc2 {[%clk 0:00:53]} 32. Kf4 {[%clk 0:01:28]}  Rc4 {[%clk 0:00:46]} 33. Rd1 {[%clk 0:01:26]}  Ke7 {[%clk 0:00:39]} 34. Rh3 {[%clk 0:01:24]}  Rh8 {[%clk 0:00:27]} 35. Rg3 {[%clk 0:01:20]}  Nc6 {[%clk 0:00:26]} 36. Rg7+ {[%clk 0:01:19]}  Ke8 {[%clk 0:00:15]} 37. f6 {[%clk 0:01:13]}  Rf8 {[%clk 0:00:09]} 38. Nc7# {[%clk 0:01:14]} 1-0


[Site "https://www.chess.com"]